bitfinex/quotes_SOLUSD_20250125
["timestamp","ask_amount","ask_price","bid_price","bid_amount"]
[1737838794367,0.03,257.92,257.91,3.8773]
[1737838795657,0.03,257.92,257.89,3.8775]
[1737838797738,0.03,257.92,257.9,20.0]
[1737838797938,0.03,257.92,257.9,23.8773]
[1737838800358,79.70047381,257.98,257.94,20.0]
[1737838800569,0.03,257.99,257.98,20.0]
[1737838800743,0.03,258.01,257.99,23.776884]
[1737838800938,79.70047381,258.13,258.04,20.0]
[1737838801363,3.8742,258.12,258.04,20.0]
[1737838801664,3.8742,258.12,257.99,43.776884]
[1737838801864,79.70047381,258.13,258.01,24.776884]
[1737838802038,6.03510304,258.14,258.03,1.0]
[1737838802243,6.03510304,258.14,258.07,47.651784]
[1737838802440,6.03510304,258.14,258.13,20.0]
[1737838802865,24.17041216,258.18,258.13,44.776884]
[1737838803046,24.17041216,258.18,258.15,20.0]
[1737838803245,0.03,258.18,258.15,20.0]
[1737838803445,0.03,258.18,258.16,0.38727929]
[1737838803871,0.03,258.18,258.16,20.38727929]
[1737838804283,0.03,258.18,258.17,47.650284]
[1737838804487,0.03,258.18,258.17,49.03748076]
[1737838804651,6.08064731,258.26,258.21,20.0]
[1737838804988,6.08064731,258.26,258.24,43.776884]
[1737838805282,0.03,258.27,258.24,43.776884]
[1737838805283,0.03,258.27,258.24,20.0]
[1737838805482,0.03,258.27,258.21,1.0]
[1737838805483,0.03,258.27,258.25,0.38712716]
[1737838805659,0.03,258.27,258.25,24.16401116]
[1737838806061,0.03,258.27,258.26,23.776884]
[1737838806468,0.03,258.27,258.26,27.648884]
[1737838808269,0.03,258.27,258.26,23.776884]
[1737838809585,79.70047381,258.39,258.27,27.648784]
[1737838809766,79.70047381,258.39,258.28,0.38702368]
[1737838811090,6.2772,258.42,258.34,20.0]
[1737838811388,0.03,258.43,258.39,23.776884]
[1737838811569,0.03,258.43,258.39,24.1638126]
[1737838812076,0.03,258.43,258.36,3.8704]
[1737838812284,0.03,258.43,258.34,20.0]
[1737838812664,0.03,258.43,258.28,86.4716]
[1737838812865,79.70047381,258.42,258.31,20.0]
[1737838813090,79.70047381,258.42,258.32,0.3869943]
[1737838813394,79.70047381,258.42,258.32,44.1638783]
[1737838813566,79.70047381,258.42,258.33,3.871]
[1737838813761,79.70047381,258.42,258.34,0.38696617]
[1737838813993,79.70047381,258.39,258.25,3.8722]
[1737838814188,79.70047381,258.38,258.25,3.8722]
[1737838814695,79.70047381,258.38,258.29,20.0]
[1737838815083,86.24117381,258.37,258.22,3.8726]
[1737838815490,86.24117381,258.37,258.23,20.38712021]
[1737838815683,86.24117381,258.37,258.24,20.0]
[1737838815885,86.24117381,258.37,258.25,23.776884]
[1737838816071,86.24117381,258.37,258.23,24.1639676]
[1737838816272,81.24817381,258.36,258.19,0.38709385]
[1737838816468,81.24817381,258.36,258.08,15.487447]
[1737838816469,20.0,258.32,258.14,3.8737]
[1737838816772,23.776884,258.3,258.08,3.8747]
[1737838816972,79.70047381,258.29,258.08,3.8747]
[1737838817163,79.70047381,258.29,258.09,44.16419335]
[1737838817491,79.70047381,258.29,258.09,0.38730935]
[1737838817693,79.70047381,258.29,258.11,20.0]
[1737838817992,83.57217381,258.28,258.06,1.6017]
[1737838818399,6.5407,258.27,258.14,20.0]
[1737838818582,86.24117381,258.27,258.14,20.0]
[1737838819203,85.7303893,258.27,258.15,23.776884]
[1737838819400,6.02991549,258.27,258.22,20.0]
[1737838819609,83.60087381,258.37,258.23,24.16403646]
[1737838819808,83.60087381,258.37,258.24,0.38711991]
[1737838820113,0.03,258.37,258.25,23.776884]
[1737838820690,5.4183,258.36,258.25,23.776884]
[1737838822198,8.0884,258.36,258.23,24.16399342]
[1737838822501,8.0884,258.36,258.28,23.776884]
[1737838823503,6.5407,258.36,258.28,24.1639694]
[1737838823812,6.5407,258.36,258.28,23.776884]
[1737838824110,86.24117381,258.36,258.28,23.776884]
[1737838824309,90.11177381,258.36,258.23,3.8724]
[1737838824486,90.11177381,258.36,258.21,0.38710537]
[1737838824487,90.11177381,258.36,258.21,4.25980537]
[1737838824685,90.11177381,258.36,258.26,23.776884]
[1737838824887,90.11177381,258.36,258.22,23.776884]
[1737838825611,90.11177381,258.36,258.25,20.0]
[1737838825916,90.11177381,258.36,258.26,23.776884]
[1737838826295,90.11177381,258.36,258.22,3.8725]
[1737838826496,90.11177381,258.36,258.23,20.0]
[1737838826700,90.11177381,258.36,258.24,23.776884]
[1737838827112,90.11177381,258.36,258.24,27.649184]
[1737838829203,90.11177381,258.36,258.23,20.0]
[1737838830023,79.70047381,258.35,258.22,3.9355]
[1737838830205,3.8708,258.34,258.26,20.0]
[1737838833407,0.03,258.37,258.34,20.0]
[1737838833615,0.03,258.37,258.35,0.38701563]
[1737838833808,0.03,258.37,258.35,24.16389963]
[1737838834206,0.03,258.37,258.31,23.776884]
[1737838834406,0.03,258.37,258.3,0.38697237]
[1737838834907,0.03,258.37,258.35,20.0]
[1737838835319,0.03,258.37,258.36,23.776884]
[1737838836632,0.03,258.37,258.36,27.647384]
[1737838836934,0.03,258.37,258.31,20.0]
[1737838837106,0.03,258.37,258.35,20.0]
[1737838839024,0.03,258.37,258.36,24.16388523]
[1737838847239,0.03,258.4,258.39,23.776884]
[1737838847446,0.03,258.43,258.41,24.776884]
[1737838847646,0.03,258.51,258.44,44.776884]
[1737838847943,0.03,258.51,258.49,23.776884]
[1737838848255,0.03,258.57,258.49,23.776884]
[1737838848256,0.03,258.57,258.52,43.776884]
[1737838848426,0.03,258.57,258.53,0.38663767]
[1737838849556,0.03,258.57,258.54,23.8678]
[1737838849933,0.03,258.57,258.54,47.644684]
[1737838850649,0.03,258.57,258.55,23.776884]
[1737838850831,0.03,258.57,258.56,0.38661894]
[1737838851222,0.03,258.57,258.54,3.8678]
[1737838851445,0.03,258.57,258.54,4.25448464]
[1737838851642,0.03,258.57,258.56,43.776884]
[1737838851849,0.03,258.57,258.56,44.1635057]
[1737838852022,6.4475,258.68,258.61,23.776884]
[1737838852228,6.4475,258.68,258.62,0.38655542]
[1737838852428,6.4475,258.68,258.62,4.25315542]
[1737838852831,6.4475,258.68,258.62,28.03003942]
[1737838853250,1.6249,258.75,258.62,28.03003942]
[1737838853450,1.6249,258.75,258.67,23.776884]
[1737838854424,5.4896,258.75,258.67,23.776884]
[1737838856551,5.4896,258.75,258.61,20.0]
[1737838856755,5.4896,258.75,258.63,20.0]
[1737838858359,5.4896,258.75,258.56,1.0]
[1737838858360,79.70047381,258.74,258.56,3.8675]
[1737838858525,79.70047381,258.74,258.57,23.776884]
[1737838859063,79.70047381,258.73,258.56,20.0]
[1737838859865,79.70047381,258.73,258.57,23.776884]
[1737838860036,13.528,258.72,258.52,3.8681]
[1737838860232,79.70047381,258.71,258.52,3.8681]
[1737838860930,79.70047381,258.71,258.56,20.0]
[1737838861130,13.5291,258.7,258.53,23.776884]
[1737838861559,13.5291,258.7,258.56,20.0]
[1737838862460,6.4475,258.68,258.51,3.8682]
[1737838862660,81.32537381,258.67,258.47,3.8689]
[1737838863264,93.23157381,258.66,258.44,3.8693]
[1737838863432,6.4475,258.64,258.44,3.8693]
[1737838864073,6.4475,258.64,258.49,23.776884]
[1737838864458,6.4475,258.64,258.44,3.8693]
[1737838864657,1.6249,258.62,258.41,3.8698]
[1737838864967,7.4475,258.59,258.37,3.8704]
[1737838865136,21.0,258.56,258.49,0.063]
[1737838865342,79.70047381,258.55,258.49,0.063]
[1737838865537,6.2891,258.54,258.49,0.063]
[1737838867045,3.868,258.53,258.49,0.063]
[1737838868179,3.8683,258.51,258.49,0.063]
[1737838868763,79.70047381,258.52,258.49,0.063]
[1737838868951,83.56867381,258.52,258.49,0.063]
[1737838869356,79.70047381,258.51,258.49,0.063]
[1737838869752,79.70047381,258.5,258.49,0.063]
[1737838869959,3.8682,258.52,258.37,23.776884]
[1737838870146,80.9,258.49,258.37,23.776884]
[1737838870469,3.8687,258.48,258.4,20.0]
[1737838871469,3.8687,258.48,258.36,0.063]
[1737838872049,3.8687,258.48,258.38,20.0]
[1737838872782,3.8687,258.48,258.37,3.8702]
[1737838873771,3.8687,258.48,258.36,0.063]
[1737838873948,1.5512,258.47,258.36,0.063]
[1737838875180,3.869,258.46,258.36,0.063]
[1737838875380,80.9,258.45,258.36,0.063]
[1737838877355,3.8693,258.44,258.36,0.063]
[1737838877555,80.9,258.43,258.36,0.063]
[1737838878975,6.2891,258.42,258.36,0.063]
[1737838879384,3.8698,258.41,258.36,0.063]
[1737838879979,80.9,258.4,258.36,0.063]
[1737838880176,80.9,258.39,258.36,0.063]
[1737838880688,80.9,258.38,258.36,0.063]
[1737838880878,1.5512,258.37,258.22,0.063]
[1737838881081,80.9,258.36,258.22,0.063]
[1737838881282,13.5479,258.34,258.22,0.063]
[1737838881493,6.2891,258.33,258.22,0.063]
[1737838881692,6.18699845,258.33,258.22,0.063]
[1737838882593,3.8711,258.32,258.22,0.063]
[1737838884901,80.9,258.31,258.22,0.063]
[1737838885084,80.9,258.3,258.22,0.063]
[1737838885898,1.6615,258.25,258.22,0.063]
[1737838886201,6.6361,258.23,258.22,0.063]
[1737838886498,6.6361,258.23,258.1,0.063]
[1737838886674,3.8728,258.21,258.1,0.063]
[1737838886877,3.8728,258.21,258.1,3.9374]
[1737838887211,3.8728,258.21,258.11,20.0]
[1737838887390,80.9,258.2,258.1,3.9374]
[1737838888291,84.773,258.2,258.1,3.9374]
[1737838890409,84.773,258.2,258.1,0.063]
[1737838891809,80.9,258.19,258.1,0.063]
[1737838891997,80.9,258.18,258.1,0.063]
[1737838892696,13.5569,258.17,258.1,0.063]
[1737838892885,80.9,258.16,258.1,0.063]
[1737838893204,82.4371,258.15,258.1,0.063]
[1737838893404,6.2908,258.14,258.1,0.063]
[1737838894702,84.774,258.13,258.1,0.063]
[1737838898493,80.9,258.12,258.1,0.063]
[1737838898681,3.8743,258.11,258.1,0.063]
[1737838899708,6.2908,258.14,258.1,0.063]
[1737838899884,3.874,258.13,258.1,0.063]
[1737838909606,48.121437,258.0,257.97,23.776884]
[1737838911128,48.121437,258.0,257.99,20.0]
[1737838911507,13.12281083,258.0,257.99,20.0]
[1737838913637,13.12281083,258.0,257.99,23.9391]
[1737838914231,13.12281083,258.0,257.99,0.063]
[1737838914904,13.12281083,258.0,257.99,27.715984]
[1737838919354,13.12281083,258.0,257.99,3.9391]
[1737838920364,13.12281083,258.0,257.99,0.063]
[1737838920756,13.12281083,258.0,257.99,23.839884]
[1737838922039,13.12281083,258.0,257.99,0.063]
[1737838925355,13.15281083,258.0,257.99,0.063]
[1737838934366,13.15281083,258.0,257.99,23.839884]
[1737838940573,80.9,258.12,258.07,20.0]
[1737838940761,6.01527607,258.19,258.09,23.776884]
[1737838940961,80.9,258.18,258.09,23.776884]
[1737838943166,80.9,258.18,258.1,3.8744]
[1737838944662,84.7732,258.18,258.07,20.0]
[1737838945168,84.7732,258.18,258.07,43.776884]
[1737838945986,80.9,258.17,258.0,16.0926]
[1737838946179,80.9,258.17,258.03,5.4659]
[1737838946594,80.9,258.17,258.04,23.776884]
[1737838947288,3.8735,258.16,258.05,3.8752]
[1737838949289,80.93,258.17,258.07,20.0]
[1737838950264,84.8034,258.17,258.07,20.0]
[1737838951792,84.8034,258.17,258.08,3.8747]
[1737838951966,80.9,258.16,258.08,3.8747]
[1737838953284,80.9,258.16,258.09,23.776884]
[1737838953790,80.9,258.16,258.08,3.8747]
[1737838953791,80.9,258.16,258.08,28.03896946]
[1737838953985,80.9,258.16,258.11,20.0]
[1737838955505,80.9,258.16,258.12,3.8741]
[1737838956791,80.9,258.16,258.14,3.8738]
[1737838956989,0.03,258.17,258.16,43.776884]
[1737838957192,0.03,258.17,258.16,44.16412817]
[1737838957983,0.03,258.23,258.2,20.0]
[1737838958307,0.03,258.23,258.21,24.16411112]
[1737838958510,0.03,258.23,258.22,20.0]
[1737838958705,0.03,258.23,258.22,43.776884]
[1737838958906,0.03,258.23,258.22,47.649484]
[1737838959308,0.03,258.23,258.22,48.03662293]
[1737838960389,0.03,258.23,258.22,47.649484]
[1737838961891,0.03,258.26,258.25,20.0]
[1737838962084,0.03,258.26,258.25,44.16397589]
[1737838962398,0.03,258.26,258.25,43.776884]
[1737838962601,0.03,258.26,258.25,47.649084]
[1737838963911,0.03,258.26,258.25,48.03622147]
[1737838964493,80.9,258.37,258.33,20.0]
[1737838965727,80.9,258.37,258.34,3.8708]
[1737838966200,80.9,258.37,258.33,20.0]
[1737838966399,84.7704,258.37,258.33,20.0]
[1737838966619,80.9,258.37,258.33,20.0]
[1737838967127,80.9,258.37,258.33,23.8709]
[1737838968227,80.9,258.37,258.34,23.776884]
[1737838968525,1.5977,258.42,258.34,23.776884]
[1737838968926,80.9,258.43,258.37,20.0]
[1737838969315,84.7695,258.43,258.28,3.8717]
[1737838969640,80.9,258.42,258.28,4.25877895]
[1737838969957,3.8698,258.41,258.32,20.0]
[1737838970314,80.9,258.42,258.33,23.776884]
[1737838970514,80.9,258.41,258.33,23.776884]
[1737838972418,80.9,258.41,258.34,4.25783802]
[1737838972738,80.9,258.41,258.36,20.0]
[1737838972966,80.9,258.41,258.37,23.776884]
[1737838973126,80.9,258.41,258.34,23.8708]
[1737838973615,80.9,258.41,258.35,20.0]
[1737838974207,80.9,258.41,258.35,23.8707]
[1737838974739,80.9,258.41,258.36,23.776884]
[1737838975818,80.9,258.41,258.38,20.0]
[1737838977622,80.9,258.41,258.3,20.0]
[1737838977819,84.7698,258.41,258.31,3.8713]
[1737838978820,80.9,258.4,258.27,3.8717]
[1737838979045,1.6394,258.38,258.27,3.8717]
[1737838979935,3.8704,258.37,258.28,20.0]
[1737838982731,1.6394,258.38,258.29,23.776884]
[1737838984554,80.9,258.37,258.28,23.776884]
[1737838984857,80.9,258.37,258.31,20.0]
[1737838986459,80.9,258.37,258.31,23.8712]
[1737838986637,84.7704,258.37,258.26,0.063]
[1737838987459,84.7704,258.37,258.26,20.063]
[1737838987852,84.7704,258.37,258.27,23.776884]
[1737838989775,80.9,258.37,258.28,3.8717]
[1737838989952,80.9,258.37,258.3,20.0]
[1737838990546,80.9,258.36,258.31,23.776884]
[1737838991066,80.9,258.36,258.29,0.387071]
[1737838991270,80.9,258.36,258.31,23.776884]
[1737838992165,80.9,258.36,258.28,3.8716]
[1737838992375,84.7706,258.36,258.26,3.9349]
[1737838992742,84.7706,258.36,258.29,20.0]
[1737838993438,80.9,258.36,258.29,20.0]
[1737838995580,80.9,258.36,258.28,3.8717]
[1737838995766,84.7705,258.36,258.28,3.8717]
[1737838995965,6.2577,258.34,258.26,0.063]
[1737838996144,1.6413,258.32,258.26,0.063]
[1737838996749,3.8713,258.31,258.26,0.063]
[1737838997044,26.2577,258.27,258.11,3.8743]
[1737838997268,26.2577,258.27,258.04,1.6203]
[1737838997269,1.6413,258.25,258.04,1.6203]
[1737838997462,1.6413,258.25,258.07,20.0]
[1737838997881,81.9,258.24,258.05,3.8752]
[1737838998046,26.2577,258.2,258.01,3.8758]
[1737838998245,80.9,258.19,258.01,3.8758]
[1737838998470,80.9,258.19,258.02,20.0]
[1737838998646,80.9,258.19,258.01,3.8758]
[1737838998852,5.5145,258.18,258.01,3.8758]
[1737838999256,5.5145,258.18,258.04,20.0]
[1737838999581,5.5145,258.18,258.01,3.8758]
[1737839000356,1.6413,258.18,258.05,20.0]
[1737839001379,1.6413,258.18,258.09,20.0]
[1737839002069,5.5146,258.18,258.04,20.0]
[1737839002656,5.5146,258.18,258.05,23.8752]
[1737839003665,80.9,258.17,258.05,23.8752]
[1737839004767,80.9,258.17,258.07,3.8749]
[1737839006375,80.9,258.17,258.09,20.0]
[1737839007786,80.9,258.17,258.1,27.651284]
[1737839009065,80.9,258.17,258.1,28.03865052]
[1737839010183,80.9,258.17,258.1,37.72475052]
[1737839010566,80.9,258.17,258.14,23.776884]
[1737839011458,80.9,258.17,258.16,20.0]
[1737839011659,6.2577,258.2,258.16,20.0]
[1737839012588,6.2577,258.2,258.17,3.8734]
[1737839013681,6.2577,258.2,258.15,20.0]
[1737839014580,80.9,258.23,258.16,3.8735]
[1737839014895,80.9,258.22,258.16,3.8735]
[1737839016390,80.9,258.22,258.17,23.776884]
[1737839016559,80.9,258.22,258.18,3.8732]
[1737839016881,6.1499,258.26,258.21,20.0]
[1737839017184,1.6601,258.3,258.22,43.776884]
[1737839017374,1.6601,258.3,258.22,44.16407115]
[1737839017563,1.6601,258.3,258.22,43.776884]
[1737839018988,1.55284356,258.3,258.23,3.8725]
[1737839023292,80.9,258.29,258.23,3.8725]
[1737839024688,0.03,258.3,258.24,23.776884]
[1737839025768,0.03,258.3,258.25,0.387143]
[1737839025965,0.03,258.3,258.28,23.776884]
[1737839026694,0.03,258.3,258.29,3.8716]
[1737839027091,0.03,258.3,258.25,3.8722]
[1737839027295,0.03,258.3,258.2,3.8729]
[1737839028393,0.03,258.3,258.24,20.0]
[1737839029783,0.03,258.3,258.23,20.0]
[1737839029978,0.03,258.3,258.21,3.8728]
[1737839030497,0.03,258.3,258.22,23.776884]
[1737839030683,80.9,258.29,258.16,3.8735]
[1737839030867,80.9,258.28,258.16,3.8735]
[1737839031074,78.9,258.28,258.17,0.38726939]
[1737839032198,78.9,258.28,258.21,20.0]
[1737839032896,78.9,258.28,258.18,27.650084]
[1737839033081,78.9,258.28,258.21,20.0]
[1737839033803,78.9,258.28,258.21,23.8727]
[1737839039413,78.9,258.28,258.22,23.776884]
[1737839039587,78.9,258.28,258.22,24.16410881]
[1737839040897,78.9,258.28,258.24,23.776884]
[1737839041587,78.9,258.28,258.2,0.063]
[1737839041788,82.7717,258.28,258.2,0.063]
[1737839041981,82.7717,258.28,258.2,3.9359]
[1737839042181,78.9,258.28,258.2,3.9359]
[1737839042377,78.9,258.28,258.23,20.0]
[1737839042598,0.03,258.3,258.28,23.776884]
[1737839042776,0.03,258.3,258.29,4.25865978]
[1737839043600,0.03,258.3,258.22,3.8726]
[1737839043901,0.03,258.3,258.24,20.0]
[1737839044107,0.03,258.3,258.24,20.38712256]
[1737839044690,0.03,258.3,258.2,0.063]
[1737839044879,0.03,258.3,258.2,3.9358]
[1737839045085,0.03,258.3,258.24,20.0]
[1737839045296,0.03,258.3,258.25,0.38714401]
[1737839046886,0.03,258.3,258.28,20.0]
[1737839047095,0.03,258.3,258.29,24.16395091]
[1737839047604,0.03,258.3,258.29,44.16395091]
[1737839048087,0.03,258.36,258.29,126.76395091]
[1737839048283,0.03,258.36,258.29,126.376884]
[1737839048586,0.03,258.36,258.29,127.92825758]
[1737839048900,0.03,258.36,258.33,20.0]
[1737839049100,0.03,258.36,258.3,3.8714]
[1737839049908,0.03,258.36,258.26,3.872]
[1737839050290,78.9,258.35,258.26,3.872]
[1737839050486,78.9,258.35,258.27,23.776884]
[1737839051106,78.9,258.35,258.26,3.872]
[1737839051716,8.0411,258.34,258.22,0.063]
[1737839051925,78.9,258.33,258.22,0.063]
[1737839052911,3.8711,258.32,258.24,20.0]
[1737839053112,78.9,258.33,258.24,20.0]
[1737839053312,78.9,258.33,258.22,3.9355]
[1737839053712,78.9,258.33,258.26,20.0]
[1737839054509,78.9,258.33,258.27,23.776884]
[1737839054818,0.03,258.36,258.35,23.776884]
[1737839055208,0.03,258.36,258.34,0.3870101]
[1737839055414,0.03,258.36,258.3,20.0]
[1737839055611,0.03,258.36,258.34,20.0]
[1737839055815,0.03,258.36,258.35,24.16381947]
[1737839056601,0.03,258.36,258.35,4.25763547]
[1737839057002,0.03,258.36,258.35,28.03451947]
[1737839057822,0.03,258.44,258.39,20.0]
[1737839058123,0.03,258.44,258.42,43.776884]
[1737839058913,0.03,258.44,258.42,47.646484]
[1737839059424,0.03,258.44,258.43,23.776884]
[1737839059920,0.03,258.44,258.42,4.2564268]
[1737839060124,0.03,258.44,258.42,3.8696]
[1737839060333,0.03,258.44,258.4,3.8698]
[1737839060812,0.03,258.44,258.41,23.776884]
[1737839061932,0.03,258.44,258.38,47.647084]
[1737839062306,0.03,258.44,258.39,0.38693108]
[1737839064029,0.03,258.48,258.47,20.0]
[1737839064325,0.03,258.48,258.47,44.16367142]
[1737839064928,0.03,258.48,258.4,13.93159794]
[1737839065112,0.03,258.48,258.4,3.8699]
[1737839066123,0.03,258.48,258.42,20.0]
[1737839066310,0.03,258.48,258.43,23.776884]
[1737839066734,0.03,258.48,258.43,24.16375182]
[1737839067709,0.03,258.48,258.47,23.776884]
[1737839067910,0.03,258.48,258.47,28.0325998]
[1737839068531,0.03,258.48,258.47,27.645784]
[1737839069839,0.03,258.56,258.47,27.645784]
[1737839070012,0.03,258.56,258.48,24.16359296]
[1737839071332,0.03,258.56,258.55,20.0]
[1737839071520,0.03,258.56,258.55,43.776884]
[1737839071842,0.03,258.56,258.55,44.16351666]
[1737839072626,0.03,258.56,258.55,47.644584]
[1737839073239,0.03,258.63,258.59,20.0]
[1737839073442,0.03,258.63,258.61,20.0]
[1737839073624,0.03,258.63,258.62,24.16340124]
[1737839074018,0.03,258.63,258.62,0.38651724]
[1737839074617,0.03,258.63,258.62,48.03000124]
[1737839074822,0.0001,258.63,258.62,48.03000124]
[1737839075050,78.9,258.8,258.63,24.776884]
[1737839075219,47.9259,258.81,258.67,23.776884]
[1737839075417,47.9259,258.81,258.68,44.16335358]
[1737839076123,6.1259,258.81,258.68,44.16335358]
[1737839076528,6.1259,258.81,258.68,48.02905358]
[1737839077755,9.9897,258.81,258.68,48.02905358]
[1737839079656,88.8897,258.81,258.68,48.02905358]
[1737839083856,88.8897,258.81,258.68,43.776884]
[1737839085561,78.9,258.8,258.68,43.776884]
[1737839087763,3.8641,258.79,258.68,43.776884]
[1737839089960,78.9,258.8,258.68,43.776884]
[1737839092861,78.9,258.8,258.69,37.306484]
[1737839093035,6.1259,258.81,258.76,20.0]
[1737839094367,6.1259,258.81,258.76,23.8645]
[1737839094556,6.0086,258.87,258.77,23.776884]
[1737839094950,9.8716,258.87,258.77,23.776884]
[1737839096064,9.8716,258.87,258.77,27.641184]
[1737839098065,6.0086,258.87,258.77,27.641184]
[1737839098656,6.0386,258.87,258.77,27.641184]
[1737839098855,0.03,258.87,258.84,20.0]
[1737839099877,0.03,258.87,258.85,24.16313989]
[1737839100043,0.03,258.87,258.86,27.639884]
[1737839101047,0.03,258.87,258.86,28.026071]
[1737839101247,0.03,258.87,258.86,27.639884]
[1737839106190,0.03,258.87,258.82,0.38618509]
[1737839106360,0.03,258.87,258.79,0.3862008]
[1737839107489,0.03,258.87,258.8,23.8639]
[1737839107657,0.03,258.87,258.84,20.0]
[1737839108596,0.03,258.87,258.85,28.02632944]
[1737839110668,0.03,258.89,258.88,43.776884]
[1737839111169,0.03,258.95,258.92,20.0]
[1737839111382,0.03,258.95,258.93,23.776884]
[1737839111780,0.03,258.95,258.92,0.38612203]
[1737839111985,0.03,258.95,258.94,0.38612449]
[1737839112467,0.03,258.95,258.9,0.38606384]
[1737839112809,0.03,258.95,258.94,43.776884]
[1737839113099,0.03,258.95,258.94,44.1629478]
[1737839113869,0.03,258.95,258.94,48.0247478]
[1737839114416,0.03,258.95,258.94,43.776884]
[1737839114989,0.03,258.95,258.89,3.8625]
[1737839115164,0.03,258.95,258.84,3.8633]
[1737839115703,0.03,258.95,258.92,20.0]
[1737839116103,6.2215,258.93,258.71,33.1295]
[1737839116407,6.2215,258.93,258.72,4.25140114]
[1737839116596,7.2215,258.93,258.72,4.25140114]
[1737839116787,6.2215,258.93,258.73,20.0]
[1737839117105,6.2215,258.93,258.74,0.38633679]
[1737839117476,3.8621,258.92,258.75,3.8647]
[1737839117678,3.8621,258.92,258.79,20.0]
[1737839118410,3.8621,258.92,258.75,3.8647]
[1737839118582,3.8621,258.92,258.75,4.25106099]
[1737839118904,13.5175,258.92,258.74,0.38641569]
[1737839119422,13.5175,258.92,258.73,3.8649]
[1737839119604,92.4175,258.92,258.73,3.8649]
[1737839119905,92.4175,258.92,258.78,20.0]
[1737839120102,1.0,258.9,258.7,3.8654]
[1737839120484,79.9,258.91,258.74,20.0]
[1737839121113,13.5186,258.9,258.74,20.0]
[1737839124210,3.8627,258.88,258.74,20.0]
[1737839125111,3.8627,258.88,258.74,23.8648]
[1737839126305,78.9,258.87,258.74,20.0]
[1737839126521,1.5276,258.85,258.7,3.8654]
[1737839126684,78.9,258.84,258.7,3.8654]
[1737839128113,3.8635,258.83,258.7,3.8654]
[1737839128716,3.8635,258.83,258.7,4.25189585]
[1737839129106,3.8635,258.83,258.7,3.8654]
[1737839130391,3.8635,258.83,258.69,3.9285]
[1737839131334,13.5223,258.83,258.69,3.9285]
[1737839131912,3.8635,258.83,258.69,3.9285]
[1737839132497,85.3676,258.82,258.69,0.063]
[1737839132830,90.88283909,258.82,258.69,0.063]
[1737839132990,89.88283909,258.82,258.69,0.063]
[1737839134504,3.8638,258.81,258.69,0.063]
[1737839136216,3.8641,258.79,258.69,0.063]
[1737839137418,78.9,258.8,258.69,0.063]
[1737839137419,78.9,258.8,258.71,20.0]
[1737839137622,6.4676,258.82,258.72,20.38644982]
[1737839137820,1.5276,258.85,258.76,20.0]
[1737839138118,1.5276,258.85,258.76,23.8644]
[1737839145225,38.96511684,258.8,258.76,23.8644]
[1737839146702,38.96511684,258.8,258.79,20.0]
[1737839147427,38.96511684,258.8,258.79,23.776884]